Cogmind - Beta 14 @@@ ROGUE MODE // 2024.09.23 @ 19:52:53 Player: Null_error Result: Destroyed by P-70 Sage with High-powered Shock Rifle Performance ------------- Evolutions (5) 2500 Regions Visited (12) 2400 Robots Destroyed (71) 355 Value Destroyed (1911) 1911 Prototype IDs (14) 280 Alien Tech Used (0) 0 Bonus (750) 750 TOTAL SCORE: 8196 Bonus ------- Follower Combat Kills 82 Entered DSFs 500 Met Data Miner 300 Friendly Fire -132 Cogmind --------- Core Integrity 0/1000 Matter 288/300 Energy 99/100 System Corruption 13% Temperature Cool (0) Movement Core (50) Location -5/Factory Parts ------- > --- POWER (2) -------- (None) > --- PROPULSION (6) --- (None) > --- UTILITY (6) ------ Visual Processing Unit Advanced Signal Interpreter > --- WEAPON (3) ------- (None) > --- INVENTORY (5) ---- Advanced Weight Redist. System Authchip [Processor] Plasma Cannon Improved Plasma Cutter Peak State ------------ > --- POWER ------------ Light Deuterium Engine Micro Fission Core > --- PROPULSION ------- Improved Treads Improved Treads Improved Hover Unit Linear Gravjet Linear Gravjet Linear Gravjet > --- UTILITY ---------- Visual Processing Unit Advanced Signal Interpreter Advanced ECM Suite Propulsion Shielding Propulsion Shielding System Shield > --- WEAPON ----------- Katana Katana Scythe > --- INVENTORY -------- Cooled VTOL Module Advanced Weight Redist. System Authchip [Processor] Plasma Cannon Improved Plasma Cutter [Rating: 60] Favorites ----------- Power Ion Engine Engine Ion Engine Power Core Micro Fission Core Propulsion Aluminum Leg Treads Improved Treads Leg Aluminum Leg Wheel Compact Wheel Hover Unit Linear Gravjet Flight Unit Xenon Bombardment Thruster Utility Signal Interpreter Device Actuator Array Storage Small Storage Unit Processor Signal Interpreter Hackware System Shield Protection Light Armor Plating Weapon Scythe Energy Gun Small Laser Ballistic Gun Light Assault Rifle Launcher Rocket Launcher Special Weapon Remote Datajack Impact Weapon Powered Hammer Slashing Weapon Scythe Piercing Weapon Makeshift Spear Build | -11 -10 -10 -9 -8 -7 -7 -7 -7 -6 -6 -6 -5 ------- Run | Yrd Mat Min Mat Mat Fac Low Low Dat Pro Fac DSF Fac Slots Evolved 10 | . . . 2 2 2 . . . . 2 . 2 Power 1 | . . . . . . . . . . 1 . . Propulsion 4 | . . . 1 1 . . . . . 1 . 1 Utility 4 | . . . 1 1 1 . . . . . . 1 Weapon 1 | . . . . . 1 . . . . . . . Parts Attached 115 | 7 8 2 28 23 8 . . . 4 3 5 27 Power 13 | 1 2 1 3 1 1 . . . 1 . 1 2 Engine 11 | 1 2 1 3 1 1 . . . 1 . . 1 Core 2 | . . . . . . . . . . . 1 1 Reactor . | . . . . . . . . . . . . . Propulsion 43 | 2 1 1 12 8 3 . . . 2 1 2 11 Treads 8 | . . . 5 1 . . . . . . . 2 Leg 8 | 2 1 1 4 . . . . . . . . . Wheel 3 | . . . . 2 . . . . . 1 . . Hover 7 | . . . . 1 . . . . . . . 6 Flight 17 | . . . 3 4 3 . . . 2 . 2 3 Utility 35 | 2 3 . 7 5 3 . . . . 2 2 11 Device 13 | 1 1 . 3 2 2 . . . . . 2 2 Storage 2 | 1 . . . . . . . . . . . 1 Processor 7 | . 2 . 2 . . . . . . . . 3 Hackware 2 | . . . . . 1 . . . . 1 . . Protection 11 | . . . 2 3 . . . . . 1 . 5 Artifact . | . . . . . . . . . . . . . Weapon 24 | 2 2 . 6 9 1 . . . 1 . . 3 Energy Gun 5 | 1 . . 3 1 . . . . . . . . Energy Cannon . | . . . . . . . . . . . . . Ballistic Gun 1 | 1 . . . . . . . . . . . . Ballistic Cannon . | . . . . . . . . . . . . . Launcher 6 | . 2 . 1 3 . . . . . . . . Special Weapon 1 | . . . . 1 . . . . . . . . Impact Weapon 5 | . . . 2 2 1 . . . . . . . Slashing Weapon 5 | . . . . 2 . . . . . . . 3 Piercing Weapon 1 | . . . . . . . . . 1 . . . Special Melee Weapon . | . . . . . . . . . . . . . Unidentified Prototypes 4 | . . . 2 . 2 . . . . . . . Corrupted Parts 1 | . . . 1 . . . . . . . . . System Corruption 1 | . . . 1 . . . . . . . . . Parts Lost 58 | . 2 . 6 9 . . . . 5 . 6 30 Power 7 | . 1 . . 1 . . . . 1 . 1 3 Propulsion 23 | . . . 3 4 . . . . 2 . 1 13 Utility 17 | . . . 1 2 . . . . 2 . 4 8 Weapon 11 | . 1 . 2 2 . . . . . . . 6 Highest Loss Streak 18 | . 2 . 3 7 . . . . 5 . 3 18 To Critical Strikes . | . . . . . . . . . . . . . Average Slot Usage (%) 89 | . 96 100 90 85 95 100 100 100 94 89 85 69 Engine 7 | . 10 14 11 6 7 7 7 7 6 6 1 1 Treads 2 | . . . 6 2 . . . . . . . 6 Leg 8 | . 28 28 13 . . . . . . . . . Hover 2 | . . . . 3 . . . . . . . 9 Flight 12 | . . . 6 18 30 30 30 30 29 26 24 3 Device 9 | . 6 . 2 12 21 23 23 23 20 13 14 4 Storage 5 | . 14 14 11 6 . . . . . . . 1 Processor 10 | . 7 14 14 9 7 7 7 7 7 6 6 10 Hackware 2 | . . . . . 4 7 7 7 5 5 6 4 Protection 2 | . . . 4 7 3 . . . . 5 . 4 Energy Gun 2 | . 2 . 9 4 . . . . . . . . Ballistic Gun 2 | . 14 14 1 . . . . . . . . . Launcher 2 | . 11 14 1 1 . . . . . . . . Impact Weapon 4 | . . . 8 10 3 7 7 7 7 6 6 1 Slashing Weapon 6 | . . . . . 15 15 15 15 11 6 6 12 Peak Build Rating 60 | 7 9 9 20 38 51 51 51 51 52 39 48 60 Average Rating 27 | 4 8 8 13 20 46 51 51 51 46 38 41 40 On Entrance 30 | . 7 8 9 20 37 51 51 51 51 34 39 36 Naked Turns . | . . . . . . . . . . . . . Heaviest Build 30 | 13 17 15 22 17 24 23 23 23 23 20 24 30 Greatest Support 46 | 20 20 20 20 20 29 24 31 29 31 21 23 46 Greatest Overweight (x) 9 | 3 . . 4 3 1 . . . 5 1 7 9 Average Overweight (x) . | . . . . . . . . . . . 1 . Largest Inventory Capacity 10 | 8 8 8 8 8 5 5 5 5 5 5 5 10 Average Capacity 6 | 7 8 8 8 7 5 5 5 5 5 5 5 6 Most Carried 8 | 5 8 8 8 8 5 5 5 5 5 3 4 6 Average Carried 5 | 4 7 7 7 6 4 5 5 5 4 1 2 4 Final Capacity 8 | 8 8 8 8 5 5 5 5 5 5 5 5 5 Final Carried 8 | 4 8 8 8 5 5 5 5 5 3 2 4 4 Class Distribution -------------------- 47% | Mutant 23% | Sprinter 14% | Scavenger-Mutant 7% | Gladiator Dominant Class ---------------- Mutant | -10/Materials Mutant | -10/Mines Mutant | -9/Materials Mutant | -8/Materials Sprinter | -7/Factory Sprinter | -7/Lower Caves Sprinter | -7/Lower Caves Sprinter | -7/Data Miner Sprinter | -6/Proximity Caves Scavenger-Gladiator | -6/Factory Gladiator | -6/DSF Mutant | -5/Factory Resources | -11 -10 -10 -9 -8 -7 -7 -7 -7 -6 -6 -6 -5 ----------- Run | Yrd Mat Min Mat Mat Fac Low Low Dat Pro Fac DSF Fac Matter Collected 1673 | 283 186 76 500 163 122 88 . . 35 . 5 215 Remotely 105 | 105 . . . . . . . . . . . . Salvage Created 2052 | 89 270 78 556 240 175 187 . . 71 . 49 337 Parts 112 | 5 31 4 30 4 7 3 . . 6 . 4 18 Haulers Intercepted 2 | . . . . . 2 . . . . . . . Recyclers Shooed 3 | 1 1 1 . . . . . . . . . . Parts Field Recycled . | . . . . . . . . . . . . . Retrieved Matter . | . . . . . . . . . . . . . Parts Self-Destructed 6 | . . . . . . . 1 . 5 . . . Prevented 2 | . . . . . . . 2 . . . . . Kills | -11 -10 -10 -9 -8 -7 -7 -7 -7 -6 -6 -6 -5 ------- Run | Yrd Mat Min Mat Mat Fac Low Low Dat Pro Fac DSF Fac Combat Hostiles Destroyed 46 | . 7 4 16 7 . 1 . . 2 . 2 7 Melee 12 | . . . 1 . . . . . 2 . 2 7 Guns 7 | . . . 7 . . . . . . . . . AOE 19 | . 7 4 4 4 . . . . . . . . Classes Destroyed 13 | 3 4 . 2 1 1 . . . 1 . 1 . Worker 7 | 1 3 . 3 . . . . . . . . . Builder 1 | . . . 1 . . . . . . . . . Tunneler 2 | 1 1 . . . . . . . . . . . Hauler 2 | . . . . . 2 . . . . . . . Recycler 2 | 1 1 . . . . . . . . . . . Operator 2 | . 1 . . . 1 . . . . . . . Watcher 8 | . 3 . 2 . 2 . . . . . . 1 Swarmer 13 | . 3 . 5 . . . . . 1 . . 4 Cutter 2 | . . . . . . . . . . . 2 . Grunt 22 | . 4 4 11 3 . . . . . . . . Sentry 5 | . . . 1 2 . . . . . . . 2 Hunter 3 | . . . . 2 . 1 . . . . . . Programmer 2 | . . . . . . . . . 1 . . 1 Best Kill Streak 9 | 1 8 2 9 4 1 1 . . 2 . 2 5 Combat Bots Only 5 | . 4 2 4 4 . 1 . . 2 . 2 5 Max Kills in Single Turn 3 | 1 2 1 3 2 1 1 . . 1 . 1 1 Gunslinging . | . . . . . . . . . . . . . Exploded 2 | . 2 1 2 2 . . . . . . . . Melee 1 | . . . 1 . . . . . 1 . 1 1 Uniques/NPCs Destroyed . | . . . . . . . . . . . . . Combat | -11 -10 -10 -9 -8 -7 -7 -7 -7 -6 -6 -6 -5 -------- Run | Yrd Mat Min Mat Mat Fac Low Low Dat Pro Fac DSF Fac Hostile Shots Fired 557 | . 21 5 103 106 1 8 7 . 51 . 40 215 Missed 199 | . 6 3 43 33 1 1 5 . 26 . 13 68 Damage Taken 6411 | . 350 63 951 996 . 81 49 . 387 . 548 2986 Core 1699 | . 27 . 153 278 . 30 24 . 94 . 89 1004 Absorbed by Shields 25 | . . . . . . . . . . . 25 . Redirected to Shielding 138 | . . . . 28 . . . . . . . 110 Core Remaining (%) 77 | 100 . 89 61 49 . . . . 78 . 89 . Volleys Fired 85 | 13 21 8 37 6 . . . . . . . . Largest 2 | 2 2 2 2 2 . . . . . . . . Hottest 98 | 60 53 53 98 60 . . . . . . . . Shots Fired 138 | 24 42 16 46 10 . . . . . . . . Gun 92 | 24 21 8 39 . . . . . . . . . Cannon . | . . . . . . . . . . . . . Launcher 46 | . 21 8 7 10 . . . . . . . . Special . | . . . . . . . . . . . . . Kinetic 46 | 13 21 8 4 . . . . . . . . . Thermal 28 | 11 . . 17 . . . . . . . . . Explosive 46 | . 21 8 7 10 . . . . . . . . Electromagnetic 18 | . . . 18 . . . . . . . . . Robot Hit Streak 5 | 3 3 3 5 5 . . . . . . . . Robot Miss Streak 5 | 5 4 1 2 . . . . . . . . . Penetration Max . | . . . . . . . . . . . . . Secondary Targets . | . . . . . . . . . . . . . Shots Hit Robots 153 | 12 14 10 38 8 7 10 4 . 5 . 3 42 Core Hits 96 | 7 20 6 23 15 3 2 . . 3 . 2 15 Critical Kills 1 | . . . . . . 1 . . . . . . Critical Parts Destroyed 9 | . . . 4 3 1 1 . . . . . . Critical Strikes 17 | . . . 6 3 1 2 1 . . . . 4 Corrupt 2 | . . . 2 . . . . . . . . . Smash 11 | . . . 4 3 1 2 1 . . . . . Sever 4 | . . . . . . . . . . . . 4 Melee Attacks 131 | . . . 17 5 12 12 4 . 17 . 7 57 Impact 44 | . . . 17 5 4 10 2 . 1 . 2 3 Slashing 73 | . . . . . 8 2 2 . 3 . 5 53 Piercing 14 | . . . . . . . . . 13 . . 1 Sneak Attacks 6 | . . . . . 6 . . . . . . . Combat Hostiles . | . . . . . . . . . . . . . Follow-up Attacks 18 | . . . . . 1 . 2 . 1 . 2 12 Damage Inflicted 6889 | 115 1219 539 1489 496 521 871 107 . 178 . 94 1260 Guns 588 | 115 72 17 384 . . . . . . . . . Cannons . | . . . . . . . . . . . . . Explosions 2796 | . 1143 522 727 404 . . . . . . . . Melee 3495 | . . . 378 87 521 871 107 . 178 . 94 1259 Ramming 10 | . 4 . . 5 . . . . . . . 1 Kinetic 190 | 69 72 17 32 . . . . . . . . . Thermal 209 | 46 . . 163 . . . . . . . . . Explosive 2796 | . 1143 522 727 404 . . . . . . . . Electromagnetic 189 | . . . 189 . . . . . . . . . Impact 1691 | . . . 378 87 229 871 47 . . . . 79 Slashing 1664 | . . . . . 292 . 60 . 61 . 94 1157 Piercing 140 | . . . . . . . . . 117 . . 23 Highest Corruption 13 | . . . 1 . . . . . 1 . . 13 Average Corruption 1 | . . . 1 . . . . . 1 . . 9 Corruption Purged . | . . . . . . . . . . . . . Corruption Blocked . | . . . . . . . . . . . . . Effects 10 | . . . 6 . . . . . . . . 4 Message Errors 1 | . . . . . . . . . . . . 1 Matter Fused 2 | . . . 1 . . . . . . . . 1 Heat Flow Errors 1 | . . . 1 . . . . . . . . . Energy Discharges 1 | . . . 1 . . . . . . . . . Parts Rejected 1 | . . . . . . . . . . . . 1 Data Loss (minor) 2 | . . . 1 . . . . . . . . 1 Data Loss (major) 2 | . . . 2 . . . . . . . . . Overload Shots . | . . . . . . . . . . . . . Overflow Damage 1051 | . 31 14 213 58 168 564 . . 3 . . . Projectiles . | . . . . . . . . . . . . . Explosions 108 | . 31 14 63 . . . . . . . . . Melee 943 | . . . 150 58 168 564 . . 3 . . . Knockbacks 6 | . . . 3 . 1 2 . . . . . . Impact 6 | . . . 3 . 1 2 . . . . . . Kinetic . | . . . . . . . . . . . . . Secondary . | . . . . . . . . . . . . . Self-Inflicted Damage 457 | . 174 42 239 2 . . . . . . . . Shots 11 | . 5 3 3 . . . . . . . . . Rammed 3 | . . . . 2 . . . . . . . 1 Targets Rammed 4 | . 1 . . 2 . . . . . . . 1 Kicked 1 | . 1 . . . . . . . . . . . Crushed . | . . . . . . . . . . . . . Highest Temperature 151 | 40 12 30 151 22 . . 3 . 3 . . 9 Average Temperature 24 | 19 3 13 37 8 . . 2 . 2 . . 6 Received Heat Transfer 1290 | . 78 12 345 216 . . 18 . 27 . . 594 Siege Activations . | . . . . . . . . . . . . . Robots Corrupted 10 | . . . 4 3 2 1 . . . . . . Combat Hostiles 8 | . . . 4 3 . 1 . . . . . . Parts Fried 17 | . . . 5 6 3 3 . . . . . . Impact Corruptions 41 | . . . 7 3 4 27 . . . . . . Robots Melted . | . . . . . . . . . . . . . Combat Hostiles . | . . . . . . . . . . . . . Parts Melted . | . . . . . . . . . . . . . Heat Transferred 435 | 100 . . 335 . . . . . . . . . Parts Sabotaged . | . . . . . . . . . . . . . Parts Stolen . | . . . . . . . . . . . . . Parts Stripped . | . . . . . . . . . . . . . Power Chain Reactions . | . . . . . . . . . . . . . Alert | -11 -10 -10 -9 -8 -7 -7 -7 -7 -6 -6 -6 -5 ------- Run | Yrd Mat Min Mat Mat Fac Low Low Dat Pro Fac DSF Fac Peak Influence 451 | 15 451 341 356 283 128 . . . . 113 114 190 Initial 175 | . 9 175 54 40 . . . . . 113 79 44 Average 121 | 5 240 256 136 114 75 . . . . 113 94 30 Maximum Alert Level 2 | . 2 1 1 1 . . . . . . . . Low Security (%) 77 | 100 36 30 77 78 100 . . . . 100 100 100 Level 1 20 | . 41 69 22 21 . . . . . . . . Level 2 1 | . 22 . . . . . . . . . . . Level 3 . | . . . . . . . . . . . . . Level 4 . | . . . . . . . . . . . . . Level 5 . | . . . . . . . . . . . . . High Security . | . . . . . . . . . . . . . Max Security . | . . . . . . . . . . . . . Squads Dispatched 7 | . . . 1 . 2 . 1 . . . 1 2 Investigation 3 | . . . 1 . 1 . . . . . . 1 Extermination 1 | . . . . . . . . . . . . 1 Reinforcement 2 | . . . . . 1 . . . . . 1 . Assault 1 | . . . . . . . 1 . . . . . Garrison . | . . . . . . . . . . . . . Intercept . | . . . . . . . . . . . . . Searches Triggered . | . . . . . . . . . . . . . Construction Impeded . | . . . . . . . . . . . . . Haulers Reinforced 1 | . . . . . 1 . . . . . . . Active Scanning Responses . | . . . . . . . . . . . . . Cargo Convoy Interrupts . | . . . . . . . . . . . . . Stealth | -11 -10 -10 -9 -8 -7 -7 -7 -7 -6 -6 -6 -5 --------- Run | Yrd Mat Min Mat Mat Fac Low Low Dat Pro Fac DSF Fac Distress Signals 6 | . 2 . 2 1 1 . . . . . . . Communications Jammed . | . . . . . . . . . . . . . Distress Signals . | . . . . . . . . . . . . . Times Spotted 131 | . 12 3 29 12 7 1 12 . 10 . 6 39 Peak Tracking Total 14 | . 3 2 4 8 5 1 14 . 7 . 3 11 Tactical Retreats 24 | . 1 . 1 1 1 . 4 . 6 . 1 9 Traps | -11 -10 -10 -9 -8 -7 -7 -7 -7 -6 -6 -6 -5 ------- Run | Yrd Mat Min Mat Mat Fac Low Low Dat Pro Fac DSF Fac Traps Triggered 3 | . . . . . . . . . . . 3 . Indirectly . | . . . . . . . . . . . . . Trap Hack Attempts . | . . . . . . . . . . . . . Triggered . | . . . . . . . . . . . . . Disarmed . | . . . . . . . . . . . . . Reprogrammed . | . . . . . . . . . . . . . Reused . | . . . . . . . . . . . . . Traps Extracted . | . . . . . . . . . . . . . Installed . | . . . . . . . . . . . . . Triggered 1 | . . . . . . . 1 . . . . . Machines | -11 -10 -10 -9 -8 -7 -7 -7 -7 -6 -6 -6 -5 ---------- Run | Yrd Mat Min Mat Mat Fac Low Low Dat Pro Fac DSF Fac Machines Disabled 7 | . 3 1 3 . . . . . . . . . Max in Single Turn 2 | . 1 1 2 . . . . . . . . . Machines Repaired . | . . . . . . . . . . . . . Machines Dismantled . | . . . . . . . . . . . . . Machines Sabotaged . | . . . . . . . . . . . . . Overloaded Fab Kills . | . . . . . . . . . . . . . Hacking | -11 -10 -10 -9 -8 -7 -7 -7 -7 -6 -6 -6 -5 --------- Run | Yrd Mat Min Mat Mat Fac Low Low Dat Pro Fac DSF Fac Machines Accessed 19 | . . . 4 1 4 . . 4 . 2 . 4 Terminals 11 | . . . 4 1 3 . . . . 1 . 2 Fabricators 1 | . . . . . 1 . . . . . . . Repair Stations 2 | . . . . . . . . . . 1 . 1 Recycling Units . | . . . . . . . . . . . . . Scanalyzers . | . . . . . . . . . . . . . Garrison Access 1 | . . . . . . . . . . . . 1 Total Hacks 76 | . . . 22 4 8 . . 31 . 3 . 8 Successful 55 | . . . 13 2 5 . . 31 . 1 . 3 Failed 20 | . . . 8 2 3 . . . . 2 . 5 Catastrophic 5 | . . . 1 . 1 . . . . . . 3 Database Lockouts 1 | . . . 1 . . . . . . . . . Manual 27 | . . . 21 . 2 . . . . . . 4 Terminals 40 | . . . 22 4 7 . . . . 2 . 5 Fabricators 1 | . . . . . 1 . . . . . . . Repair Stations 3 | . . . . . . . . . . 1 . 2 Recycling Units . | . . . . . . . . . . . . . Scanalyzers . | . . . . . . . . . . . . . Garrison Access 1 | . . . . . . . . . . . . 1 Terminal Hacks 45 | . . . 7 2 2 . . 31 . 1 . 2 Record 14 | . . . . . 2 . . 11 . . . 1 Part Schematic 13 | . . . . . . . . 13 . . . . Robot Schematic 4 | . . . . . . . . 4 . . . . Robot Analysis 2 | . . . 2 . . . . . . . . . Prototype ID Bank 3 | . . . . . . . . 3 . . . . Open DSF 1 | . . . . . . . . . . 1 . . Alert Level 3 | . . . 3 . . . . . . . . . Unreport Threat 5 | . . . 2 2 . . . . . . . 1 Fabricator Hacks 1 | . . . . . 1 . . . . . . . Network Status 1 | . . . . . 1 . . . . . . . Repair Station Hacks 1 | . . . . . . . . . . . . 1 Scan Component 1 | . . . . . . . . . . . . 1 Recycling Unit Hacks . | . . . . . . . . . . . . . Scanalyzer . | . . . . . . . . . . . . . Garrison Access Hacks . | . . . . . . . . . . . . . Unauthorized Hacks 7 | . . . 5 . 2 . . . . . . . Terminals 7 | . . . 5 . 2 . . . . . . . Assimilate 2 | . . . 1 . 1 . . . . . . . Skim 5 | . . . 4 . 1 . . . . . . . Fabricators . | . . . . . . . . . . . . . Repair Stations . | . . . . . . . . . . . . . Recycling Units . | . . . . . . . . . . . . . Scanalyzers . | . . . . . . . . . . . . . Garrison Access . | . . . . . . . . . . . . . Data Cores Recovered 1 | . 1 . . . . . . . . . . . Used . | . . . . . . . . . . . . . Hacking Detections 14 | . . . 4 1 4 . . . . 1 . 4 Full Trace Events 4 | . . . 2 . 1 . . . . . . 1 Feedback Events . | . . . . . . . . . . . . . Feedback Blocked . | . . . . . . . . . . . . . Robot Schematics Acquired 4 | . . . . . . . . 4 . . . . Robots Built . | . . . . . . . . . . . . . Authchips . | . . . . . . . . . . . . . Time . | . . . . . . . . . . . . . Total Robot Build Rating . | . . . . . . . . . . . . . Part Schematics Acquired 13 | . . . . . . . . 13 . . . . Parts Built . | . . . . . . . . . . . . . Authchips . | . . . . . . . . . . . . . Time . | . . . . . . . . . . . . . Total Part Build Rating . | . . . . . . . . . . . . . Parts Repaired . | . . . . . . . . . . . . . Time . | . . . . . . . . . . . . . Parts Recycled . | . . . . . . . . . . . . . Recycled Matter . | . . . . . . . . . . . . . Retrieved Matter . | . . . . . . . . . . . . . Retrieved Components . | . . . . . . . . . . . . . Parts Scanalyzed . | . . . . . . . . . . . . . Part Schematics Acquired . | . . . . . . . . . . . . . Parts Damaged . | . . . . . . . . . . . . . Bothacking | -11 -10 -10 -9 -8 -7 -7 -7 -7 -6 -6 -6 -5 ------------ Run | Yrd Mat Min Mat Mat Fac Low Low Dat Pro Fac DSF Fac Used RIF Installer . | . . . . . . . . . . . . . Robots Hacked . | . . . . . . . . . . . . . Non-combat . | . . . . . . . . . . . . . Combat . | . . . . . . . . . . . . . Robot Hacks Applied . | . . . . . . . . . . . . . Relay Couplers Released 4 | . . . . . . . . . . . . 4 Programmers 4 | . . . . . . . . . . . . 4 Fabnet Peak Effective % . | . . . . . . . . . . . . . Robots Rewired . | . . . . . . . . . . . . . Allies Hacked . | . . . . . . . . . . . . . Hacks Repelled . | . . . . . . . . . . . . . Allies | -11 -10 -10 -9 -8 -7 -7 -7 -7 -6 -6 -6 -5 -------- Run | Yrd Mat Min Mat Mat Fac Low Low Dat Pro Fac DSF Fac Total Allies 4 | . . 3 1 . . . . . . . . . Largest Group 3 | . . 3 3 . . . . . . . . . Highest-Rated Group 40 | . . 40 40 . . . . . . . . . Highest-Rated Ally 16 | . . 16 16 . . . . . . . . . Total Orders . | . . . . . . . . . . . . . Ally Attacks 33 | . . . 33 . . . . . . . . . Total Damage 276 | . . . 276 . . . . . . . . . Kills 6 | . . . 6 . . . . . . . . . Allies Corrupted . | . . . . . . . . . . . . . Allies Melted . | . . . . . . . . . . . . . Intel | -11 -10 -10 -9 -8 -7 -7 -7 -7 -6 -6 -6 -5 ------- Run | Yrd Mat Min Mat Mat Fac Low Low Dat Pro Fac DSF Fac Robot Analysis Total 2 | . . . 2 . . . . . . . . . Derelict Logs Recovered 5 | . . 3 . . . 1 . . 1 . . . Drone Launches 3 | . . . . . . . . . . . 3 . Drone Recoveries 3 | . . . . . . . . . . . 3 . Exploration | -11 -10 -10 -9 -8 -7 -7 -7 -7 -6 -6 -6 -5 ------------- Run | Yrd Mat Min Mat Mat Fac Low Low Dat Pro Fac DSF Fac Turns Passed 5070 | 176 321 579 1156 364 425 244 203 25 380 104 123 970 Spaces Moved 4746 | 78 204 440 684 299 655 544 323 90 551 164 96 618 Core 110 | 15 . . 2 3 . . . . 2 . . 88 Treads 242 | . . . 128 14 . . . . . . . 100 Legs 1020 | 63 204 440 313 . . . . . . . . . Wheels 184 | . . . . 46 . . . . . 64 2 72 Hover 360 | . . . . 69 . . . . . . . 291 Flight 2830 | . . . 241 167 655 544 323 90 549 100 94 67 Fastest Speed 25 | 50 120 120 34 34 28 32 25 28 25 27 29 50 Average Speed 77 | 161 120 120 139 86 33 32 29 28 32 61 90 110 Slowest Speed 500 | 200 120 120 250 280 117 32 32 28 355 115 440 500 Overloaded Moves 68 | . . . . . . . 9 . 20 . 29 10 Propulsion Burnouts . | . . . . . . . . . . . . . Robots Hopped . | . . . . . . . . . . . . . Cave-ins Triggered . | . . . . . . . . . . . . . Exploration Rate (%) 44 | 5 41 72 49 22 17 74 55 72 69 4 89 15 Regions Visited 12 Branch Regions 5 Pre-discovered Areas 4 | . . 2 . . . . . 1 1 . . . Known Exits Taken 10 | . 1 1 1 1 1 1 1 1 1 1 . . Unknown Exits Taken 1 | 1 . . . . . . . . . . . . Scrap Searched 3 | . . 1 . . . . 1 . 1 . . . Spaces Dug 7 | . . . 1 . 2 . . . 2 . . 2 Terrain Destroyed 327 | . 164 59 74 24 2 . . . 2 . . 2 Melee 7 | . . . 1 . 2 . . . 2 . . 2 Projectile . | . . . . . . . . . . . . . AOE 320 | . 164 59 73 24 . . . . . . . . Terrain Rammed . | . . . . . . . . . . . . . Walls Destroyed . | . . . . . . . . . . . . . Machines Disabled . | . . . . . . . . . . . . . Actions | -11 -10 -10 -9 -8 -7 -7 -7 -7 -6 -6 -6 -5 --------- Run | Yrd Mat Min Mat Mat Fac Low Low Dat Pro Fac DSF Fac Total 5819 | 105 240 478 813 377 847 595 427 89 735 167 122 824 Wait 700 | . . 25 27 37 169 42 103 . 167 . 1 129 Move 4734 | 77 203 439 683 298 654 543 322 89 550 163 95 618 Hop . | . . . . . . . . . . . . . Pick Up 34 | 8 5 1 8 3 3 . . . . 1 2 3 Fast Attach 45 | 3 1 . 5 9 1 . . . 1 1 3 21 Attach 21 | 4 1 . 3 4 1 . . . 2 2 1 3 Detach 3 | . . . 1 1 . . . . . . . 1 Swap 49 | . 6 2 20 10 6 . . . 1 . 1 3 Drop 25 | . 2 3 12 2 4 . . . . . . 2 Fire 85 | 13 21 8 37 6 . . . . . . . . Melee 105 | . . . 17 5 9 10 2 . 14 . 5 43 Ram 3 | . . . . 2 . . . . . . . 1 Kick 1 | . 1 . . . . . . . . . . . Crush . | . . . . . . . . . . . . . Escape Stasis 14 | . . . . . . . . . . . 14 . Rewire . | . . . . . . . . . . . . . Trap . | . . . . . . . . . . . . . Miscellaneous . | . . . . . . . . . . . . . Route ------- -11/Scrapyard -10/Materials (discovered 2 exits: *Mat / *Min) -10/Mines -9/Materials (discovered 5 exits: *Mat x2 / *Min x2 / Sto) -8/Materials -7/Factory -7/Lower Caves -7/Lower Caves -7/Data Miner -6/Proximity Caves -6/Factory -6/DSF -5/Factory History --------- Turn | Location | Event 28 | -11/Scrapyard | Discovered new exit (range 16) 177 | -11/Scrapyard | Entered Materials 257 | -10/Materials | Discovered new exit (range 15) 301 | -10/Materials | Discovered new exit (range 9) 307 | -10/Materials | Build established: Mutant 350 | -10/Materials | Identified exit to Mines 498 | -10/Materials | Entered Mines 515 | -10/Mines | Met a Derelict bent on vengeance 569 | -10/Mines | Discovered new exit (range 13) 582 | -10/Mines | Identified exit to Materials 656 | -10/Mines | Learned 8 Materials zone layouts 671 | -10/Mines | Found a damaged Exp. Sensor Array with a note attached 674 | -10/Mines | Found Prototype Device 730 | -10/Mines | Learned location of Zion (-6) 773 | -10/Mines | Learned location of Storage (-9) 848 | -10/Mines | Assisted by bots powering up and referring to "LRC-V3" 1077 | -10/Mines | Entered Materials 1077 | -9/Materials | Accompanied by 3 allies 1077 | -9/Materials | Evolved 2 slots: Propulsion x1, Utility x1 1078 | -9/Materials | Identified exit to Materials 1078 | -9/Materials | Identified exit to Mines 1078 | -9/Materials | Identified exit to Storage 1381 | -9/Materials | Discovered exit to Mines (range 12) 1443 | -9/Materials | Identified Exp. Sensor Array 1585 | -9/Materials | Build established: Scavenger-Mutant 1735 | -9/Materials | Lost 3 parts (1n2w) 1740 | -9/Materials | Central database locked down 1863 | -9/Materials | Lost 3 parts (2n1u) 1993 | -9/Materials | Build established: Mutant 2225 | -9/Materials | Discovered exit to Materials (range 16) 2233 | -9/Materials | Entered another Materials area 2233 | -8/Materials | Evolved 2 slots: Propulsion x1, Utility x1 2495 | -8/Materials | Core integrity fell below 50% 2519 | -8/Materials | Lost 7 parts (1p3n1u2w) 2587 | -8/Materials | Discovered new exit (range 9) 2596 | -8/Materials | Identified exit to Factory 2597 | -8/Materials | Entered Factory 2597 | -7/Factory | Evolved 2 slots: Utility x1, Weapon x1 2892 | -7/Factory | Discovered new exit (range 13) 2895 | -7/Factory | Identified exit to Lower Caves 3012 | -7/Factory | Build established: Sprinter 3022 | -7/Factory | Entered Lower Caves 3197 | -7/Lower Caves | Learned Factory terminal intel 3207 | -7/Lower Caves | Discovered new exit (range 8) 3211 | -7/Lower Caves | Identified exit to Lower Caves 3266 | -7/Lower Caves | Entered another Lower Caves area 3341 | -7/Lower Caves | Attracted the attention of an 0b10 outpost 3466 | -7/Lower Caves | Encountered a Warlord checkpoint 3466 | -7/Lower Caves | Discovered new exit (range 10) 3469 | -7/Lower Caves | Identified exit to Data Miner 3469 | -7/Lower Caves | Entered Data Miner 3469 | -7/Data Miner | Discovered new exit (range 6) 3472 | -7/Data Miner | Identified exit to Proximity Caves 3476 | -7/Data Miner | Met Data Miner 3483 | -7/Data Miner | Learned location of Section 7 (-2) 3483 | -7/Data Miner | Acquired the access code to Warlord's prototype stash 3488 | -7/Data Miner | Received God Mode back door access code from Data Miner 3494 | -7/Data Miner | Entered Proximity Caves 3524 | -6/Proximity Caves | Spotted B-75 Beast 3782 | -6/Proximity Caves | Attracted the attention of an 0b10 checkpoint 3861 | -6/Proximity Caves | Lost 5 parts (1p2n2u) 3864 | -6/Proximity Caves | Discovered new exit (range 10) 3866 | -6/Proximity Caves | Identified exit to Factory 3874 | -6/Proximity Caves | Entered Factory 3874 | -6/Factory | Evolved 2 slots: Power x1, Propulsion x1 3875 | -6/Factory | Loaded intel: 25 terminal locations 3927 | -6/Factory | Identified exit to DSF 3978 | -6/Factory | Entered DSF 4000 | -6/DSF | Additional patrols routed to DSF 4000 | -6/DSF | Discovered new exit (range 14) 4042 | -6/DSF | Lost 3 parts (1p2u) 4095 | -6/DSF | Identified exit to Factory 4101 | -6/DSF | Entered Factory 4101 | -5/Factory | Evolved 2 slots: Propulsion x1, Utility x1 4129 | -5/Factory | Lost 3 parts (1n2u) 4307 | -5/Factory | Build established: Gladiator 4324 | -5/Factory | Lost 5 parts (1p2n1u1w) 4436 | -5/Factory | Lost 7 parts (2n3u2w) 4942 | -5/Factory | Build established: Scavenger-Mutant 4973 | -5/Factory | System corruption reached 10% 4988 | -5/Factory | Core integrity fell below 50% 5035 | -5/Factory | Core integrity fell below 20% 5071 | -5/Factory | Destroyed by P-70 Sage with High-powered Shock Rifle Last Messages --------------- 05005_ System corrupted: Component data lost. 05006_ Imp. Treads destroyed. 05011_ Katana follow-up attack on G-50 Soldier. 05014_ Katana destroyed. 05015_ Slammed into G-50 Soldier. 05015_ Subcomponent Replicator disabled. 05016_ VTOL Module destroyed. 05021_ Mic. Fission Core destroyed. 05026_ Imp. Antigrav System destroyed. 05028_ Acquired Imp. Antigrav System. 05031_ Dropped Med. Storage Unit. 05033_ Imp. Antigrav System destroyed. 05035_ Katana destroyed. 05038_ System corrupted: Broken Cld. VTOL Module rejected. 05041_ P-70 Sage resets P-70 Sage, system corruption cleaned. 05046_ Adv. ECM Suite destroyed. 05063_ System corrupted: Matter fused (-7). 05063_ U-05 Engineer works on Assembly Bed. Map ----- +----------------------------------------------------+ | ?????????????????????????????????????????????????? | | ?????????????????????????????????????????????????? | | ?????????????????????????????????????????????????? | | ?????????????????????????????????????????????????? | | ?????????????????????????????????????????????????? | | ?????????????????????????????????????????????????? | | ?????????????????????????????????????????????????? | | ?????????????????????????????????????????????????? | | ?????????????????????????????????????????????????? | | ?????????????????????#?#####?????????????????????? | | ?????????????????????# #????????????????????? | | ?????????????????????# #????????????????????? | | ?????????????????????# #????????????????????? | | ?????????????????????# """" #?####### ???????????? | | ?????????????????????# """" #? #????????? | | ?????????????????????# """" ## = #????????? | | ?????????????????????# """" ## ] ??????#??" | | ?????????????????????# ## #??????# "" | | ?????????????????????# "" ## ##?????# "" | | ?????????????????????# """## ""?????# "" | | ?????????????????????# S"## ! !!!""?????# "" | | ?????????????????????# """## !!!T"#????? | | ?????????????????????# """## !! ""#??????? | | ???????????#########?# ## ""?####???? | | ???????????# ####/#### << ####T ##### | | ???????????# Y @ k u< | | ???????? g g g | | ???????? | | ????????? g p | | ????????? p | | ?????????? | | ??????????## ! | | ???????????# #############+############### | | ???????????#####+####??????????? ????????????? | | ?????????????????????????????? """ """ ??????????? | | ???????????????????????????? """ """ *????????? | | ??????????????????????????# """ """ * ??????? | | ??????????????????????????# #?????? | | ??????????????????????????# """ """ """ #?????? | | ??????????????????????????# """ """ """ #?????? | | ??????????????????????????# ? ??"" ""??"?????????? | | ??????????????????????????#?????? ?????????????? | | ?????????????????????????????????###?????????????? | | | | | | | | | | | | | | | +----------------------------------------------------+ Best States ------------- Heat Dissipation 47 Energy Generation 24 Energy Capacity 290 Matter Stores 300 Matter Capacity 300 Sight Range 18 Robot Scan Range 20 Terrain Scan Density 10 ECM Strength 2 Additional Mass Support 6 Armor Coverage 225 Propulsion Shielding 33 Utility Shielding 33 Evasion (%) 64 Targeting Accuracy 6 Recoil Reduction 2 Defensive Hacking 10 Authchip Count 1 Item Schematics ----------------- Combat Drone Bay | -7/Data Miner | Free Lgt. Regenerative Plating | -7/Data Miner | Free Cld. Aerolev Unit | -7/Data Miner | Free Gravity Neutralizer | -7/Data Miner | Free Ion Burst Cannon | -7/Data Miner | Free Antigrav System | -7/Data Miner | Free Adv. Field Recycling Unit | -7/Data Miner | Free Hvy. Shock Bomb Launcher | -7/Data Miner | Free Imp. Actuator Array | -7/Data Miner | Free Field Propulsion Drive | -7/Data Miner | Free Neutrino Core | -7/Data Miner | Free Imp. Force Field | -7/Data Miner | Free Adv. Concussive RPG | -7/Data Miner | Free Robot Schematics ------------------ S-27 Virus | -7/Data Miner | Free O-24 Administrator | -7/Data Miner | Free H-55 Commando | -7/Data Miner | Free I-36 Angel | -7/Data Miner | Free Fabricated ------------ Nothing Alien Tech Used ----------------- None Achievements -------------- None Challenges ------------ None Game ------ Seed SniperClaymoresDisintegrator Manual? 0 Play Time 01:08:49 Cumulative 65.5 hours Start 2024.09.20 @ 15:07:10 End 2024.09.23 @ 19:52:53 Sessions 1 Manual Loads 0 Difficulty Rogue Special Mode None Game No. 69 Rogue 69 Adventurer 0 Explorer 0 Win Type - Total 1 Types 1/0/0/0/0/0/0/0/0 Lore% 25 Gallery% 47 Achievement% 33 Wizard Run 0 Options --------- Layout 2 ASCII 0 Keyboard 1 Movement Numpad Keybinds 0 Fullscreen 0 Font 20/SmallcapsGlow Map View 50x44 Zoom Use 0% Tactical HUD 1 Map Filters NONE Filters LOW_CONTRAST(5,10,15) Steam 1 RUN: 42004808-7983-43cf-9667-3999b6cc382c